bitfinex/quotes_SOLUSD_20240628
["timestamp","ask_amount","ask_price","bid_price","bid_amount"]
[1719535626971,21.10540295,148.55,148.46,15.516]
[1719535627172,1.3508,148.51,148.42,15.869]
[1719535627390,15.34,148.48,148.42,6.04333138]
[1719535627587,15.34,148.48,148.38,42.90998982]
[1719535627786,15.34,148.48,148.42,15.34]
[1719535628377,15.34,148.46,148.4,6.2806]
[1719535628573,35.34,148.45,148.39,15.34]
[1719535629396,20.0,148.45,148.4,15.34]
[1719535630298,20.0,148.45,148.37,19.48678115]
[1719535630483,15.34,148.49,148.43,15.34]
[1719535630682,20.0,148.48,148.43,15.34]
[1719535632402,35.34,148.48,148.42,15.34]
[1719535633481,35.34,148.48,148.37,19.48678115]
[1719535633482,20.0,148.48,148.44,15.34]
[1719535633683,20.0,148.51,148.45,15.34]
[1719535636309,20.0,148.51,148.46,15.34]
[1719535637307,20.0,148.51,148.47,15.34]
[1719535638000,20.0,148.51,148.48,15.34]
[1719535638309,1.3508,148.54,148.49,15.34]
[1719535638998,16.44540295,148.55,148.49,15.34]
[1719535639394,23.17730295,148.55,148.49,15.34]
[1719535639789,20.0,148.54,148.49,15.34]
[1719535639981,6.7327,148.53,148.48,15.34]
[1719535640182,20.0,148.52,148.48,15.34]
[1719535640408,26.7323,148.54,148.48,15.34]
[1719535640594,42.0723,148.54,148.48,15.34]
[1719535641615,20.0,148.54,148.48,15.34]
[1719535643314,20.0,148.54,148.44,13.0852]
[1719535643315,20.0,148.54,148.49,15.34]
[1719535643503,20.0,148.54,148.44,13.0852]
[1719535643504,20.0,148.54,148.44,6.3372]
[1719535643703,20.0,148.54,148.49,15.34]
[1719535643901,20.0,148.54,148.45,6.748]
[1719535643902,20.0,148.54,148.5,15.34]
[1719535644097,21.10540295,148.55,148.47,15.34]
[1719535644412,21.10540295,148.55,148.51,15.34]
[1719535644796,1.10540295,148.55,148.51,15.34]
[1719535644996,20.0,148.54,148.44,6.3372]
[1719535645201,22.0733,148.52,148.44,6.3372]
[1719535645506,22.0733,148.52,148.46,15.34]
[1719535645507,15.34,148.52,148.46,15.34]
[1719535646993,15.34,148.53,148.47,15.34]
[1719535647211,20.0,148.52,148.47,15.34]
[1719535651316,35.34,148.53,148.47,15.34]
[1719535652817,15.34,148.52,148.46,15.34]
[1719535653515,35.34,148.53,148.47,15.34]
[1719535655218,20.0,148.53,148.48,15.34]
[1719535656396,26.3094,148.53,148.42,21.72044928]
[1719535656597,22.074,148.5,148.42,21.72044928]
[1719535656923,15.34,148.48,148.4,6.4614]
[1719535657227,26.7345,148.49,148.41,15.34]
[1719535657228,15.34,148.47,148.41,15.34]
[1719535657397,21.1097536,148.49,148.42,15.34]
[1719535657597,15.34,148.48,148.42,15.34]
[1719535657910,36.4497536,148.49,148.43,15.34]
[1719535658601,21.1097536,148.49,148.45,15.34]
[1719535658795,1.1097536,148.49,148.45,15.34]
[1719535659898,20.0,148.5,148.46,15.34]
[1719535660097,20.0,148.51,148.46,15.34]
[1719535666406,20.0,148.52,148.47,15.34]
[1719535666609,20.0,148.52,148.49,15.34]
[1719535666932,6.7323,148.54,148.49,15.34]
[1719535668219,20.0,148.53,148.49,15.34]
[1719535669335,20.0,148.53,148.5,15.34]
[1719535669503,20.0,148.54,148.5,15.34]
[1719535670427,20.0,148.54,148.49,15.34]
[1719535671130,26.7323,148.54,148.46,6.1516]
[1719535671329,26.7323,148.54,148.49,15.34]
[1719535672108,20.0,148.54,148.49,15.34]
[1719535674240,35.34,148.55,148.5,15.34]
[1719535674440,20.0,148.55,148.5,15.34]
[1719535674823,20.0,148.55,148.47,15.34]
[1719535674824,20.0,148.55,148.51,15.34]
[1719535676555,35.34,148.55,148.46,12.1736815]
[1719535676717,22.0722,148.54,148.48,15.34]
[1719535676920,20.0,148.53,148.48,15.34]
[1719535677147,20.0,148.53,148.49,15.34]
[1719535677313,20.0,148.54,148.49,15.34]
[1719535678145,15.34,148.53,148.46,6.1516]
[1719535678356,15.34,148.51,148.44,15.8275]
[1719535678659,20.0,148.5,148.45,15.34]
[1719535678833,1.11406086,148.52,148.45,15.34]
[1719535679148,6.7336,148.51,148.45,15.34]
[1719535679331,20.0,148.5,148.45,15.34]
[1719535680347,20.0,148.5,148.44,15.34]
[1719535681742,35.34,148.5,148.44,15.34]
[1719535685024,20.0,148.41,148.36,31.5472]
[1719535685751,20.0,148.41,148.33,67.5158]
[1719535685752,22.0792,148.39,148.33,6.1558]
[1719535685930,15.34,148.39,148.33,15.34]
[1719535686120,35.34,148.38,148.32,15.5391]
[1719535686325,35.34,148.38,148.29,6.3366]
[1719535686535,15.34,148.37,148.29,6.3366]
[1719535686743,15.34,148.37,148.31,15.34]
[1719535686744,20.0,148.36,148.31,15.34]
[1719535687335,20.0,148.36,148.29,6.3366]
[1719535687534,20.0,148.36,148.31,15.34]
[1719535688551,20.0,148.36,148.32,15.34]
[1719535688758,20.0,148.37,148.32,15.34]
[1719535690139,1.11832515,148.36,148.28,15.8625]
[1719535690342,1.11832515,148.36,148.31,15.34]
[1719535690868,1.11832515,148.36,148.28,15.8625]
[1719535691035,1.11832515,148.36,148.3,15.34]
[1719535691543,16.45832515,148.36,148.3,15.34]
[1719535694047,16.45832515,148.36,148.31,15.34]
[1719535694540,1.11832515,148.36,148.3,15.34]
[1719535694740,16.45832515,148.36,148.3,15.34]
[1719535700876,16.45832515,148.36,148.26,67.6715]
[1719535700877,20.0,148.35,148.26,6.3115]
[1719535701075,15.34,148.31,148.25,15.34]
[1719535702557,15.34,148.3,148.24,15.34]
[1719535703482,15.34,148.29,148.23,15.34]
[1719535703654,15.34,148.29,148.2,23.38062529]
[1719535703977,35.34,148.28,148.22,15.34]
[1719535704359,20.0,148.28,148.22,15.34]
[1719535704560,15.34,148.29,148.23,15.34]
[1719535704761,20.0,148.28,148.23,15.34]
[1719535705167,20.0,148.28,148.2,16.3345]
[1719535705371,20.0,148.28,148.25,15.34]
[1719535705575,21.3508,148.3,148.25,15.34]
[1719535706273,15.34,148.29,148.19,13.10194707]
[1719535706586,21.3508,148.3,148.21,15.34]
[1719535706587,22.0844,148.27,148.21,15.34]
[1719535706884,1.89560241,148.28,148.22,15.34]
[1719535707082,37.23560241,148.28,148.22,15.34]
[1719535707281,37.23560241,148.28,148.18,6.5264]
[1719535707282,37.23560241,148.28,148.19,61.36]
[1719535708195,37.23560241,148.28,148.22,15.34]
[1719535710287,37.23560241,148.28,148.19,61.36]
[1719535713992,37.23560241,148.28,148.18,12.3498754]
[1719535714189,15.34,148.27,148.18,12.3498754]
[1719535714384,15.34,148.26,148.2,15.34]
[1719535714590,15.34,148.26,148.18,12.3498754]
[1719535714891,20.0,148.25,148.2,15.34]
[1719535715722,20.0,148.25,148.16,22.29373669]
[1719535715884,20.0,148.25,148.2,15.34]
[1719535716091,15.34,148.24,148.16,22.29373669]
[1719535716400,15.34,148.24,148.18,15.34]
[1719535716692,35.34,148.25,148.19,15.34]
[1719535717079,35.34,148.25,148.16,15.2453]
[1719535717596,1.89560241,148.24,148.19,15.34]
[1719535719093,1.89560241,148.24,148.16,21.26945901]
[1719535719397,1.89560241,148.24,148.19,15.34]
[1719535721095,1.89560241,148.24,148.16,15.2453]
[1719535721298,1.89560241,148.24,148.19,15.34]
[1719535722577,1.89560241,148.24,148.16,15.2453]
[1719535723099,1.89560241,148.24,148.19,15.34]
[1719535723598,1.89560241,148.24,148.14,7.04804978]
[1719535723599,1.3508,148.23,148.14,7.04804978]
[1719535723814,15.34,148.21,148.15,15.34]
[1719535724500,15.34,148.22,148.12,76.725]
[1719535724703,20.0,148.21,148.16,15.34]
[1719535725400,20.0,148.21,148.17,15.34]
[1719535725580,1.3508,148.23,148.18,15.34]
[1719535725903,16.6908,148.23,148.17,15.34]
[1719535726197,20.0,148.22,148.17,15.34]
[1719535726871,20.0,148.22,148.12,82.75838786]
[1719535727090,20.0,148.22,148.17,15.34]
[1719535727304,35.34,148.22,148.16,15.34]
[1719535727499,17.23560241,148.21,148.15,15.34]
[1719535727681,1.89560241,148.21,148.16,15.34]
[1719535728605,1.89560241,148.21,148.17,15.34]
[1719535730189,1.89560241,148.21,148.18,15.34]
[1719535732405,1.89560241,148.21,148.17,15.34]
[1719535732609,21.89560241,148.21,148.17,15.34]
[1719535733181,1.89560241,148.21,148.17,15.34]
[1719535733397,1.89560241,148.21,148.13,1.34978643]
[1719535733602,1.89560241,148.21,148.16,15.34]
[1719535734492,15.34,148.2,148.12,21.39838786]
[1719535734710,15.34,148.2,148.14,15.34]
[1719535735017,17.23560241,148.21,148.15,15.34]
[1719535735198,20.0,148.2,148.15,15.34]
[1719535735589,20.0,148.2,148.12,36.73838786]
[1719535735789,21.89560241,148.21,148.16,15.34]
[1719535736281,37.23560241,148.21,148.12,36.73838786]
[1719535736516,37.23560241,148.21,148.15,15.34]
[1719535736805,43.98280241,148.21,148.15,15.34]
[1719535737611,37.23560241,148.21,148.15,15.34]
[1719535739214,37.23560241,148.21,148.12,21.39838786]
[1719535739510,22.0879,148.2,148.14,15.34]
[1719535739710,20.0,148.19,148.14,15.34]
[1719535739882,43.98290241,148.21,148.15,15.34]
[1719535740506,37.23560241,148.21,148.15,15.34]
[1719535740807,13.3155,148.25,148.12,82.75838786]
[1719535740981,6.5701,148.25,148.2,15.34]
[1719535741184,35.34,148.24,148.13,6.748]
[1719535741416,35.34,148.24,148.18,15.34]
[1719535741611,20.0,148.24,148.2,15.34]
[1719535741814,23.4353,148.27,148.2,15.34]
[1719535742418,23.4353,148.27,148.15,6.5735]
[1719535742419,23.4353,148.27,148.21,15.34]
[1719535742909,8.0953,148.27,148.21,15.34]
[1719535743115,20.0,148.26,148.21,15.34]
[1719535745016,36.6908,148.27,148.21,15.34]
[1719535747510,15.34,148.26,148.15,6.5735]
[1719535747806,15.34,148.24,148.18,15.34]
[1719535748022,20.0,148.25,148.18,15.34]
[1719535748191,35.34,148.25,148.19,15.34]
[1719535748390,42.0854,148.25,148.19,15.34]
[1719535749087,20.0,148.25,148.19,15.34]
[1719535749291,20.0,148.25,148.2,15.34]
[1719535751687,21.89560241,148.26,148.2,15.34]
[1719535752288,1.89560241,148.26,148.23,15.34]
[1719535753121,20.0,148.27,148.19,15.34]
[1719535753327,20.0,148.27,148.22,15.34]
[1719535753789,20.0,148.27,148.18,15.6527]
[1719535753992,26.7446,148.27,148.22,15.34]
[1719535754296,35.34,148.27,148.18,15.6527]
[1719535754495,6.745,148.26,148.21,15.34]
[1719535754919,35.34,148.27,148.21,15.34]
[1719535755095,20.0,148.27,148.22,15.34]
[1719535755511,20.0,148.27,148.23,15.34]
[1719535756696,20.0,148.27,148.22,15.34]
[1719535757095,20.0,148.27,148.24,15.34]
[1719535757310,26.7435,148.29,148.24,15.34]
[1719535758420,20.0,148.29,148.25,1.34911]
[1719535758604,13.1741,148.32,148.28,15.34]
[1719535758605,6.4316,148.32,148.28,15.34]
[1719535758923,20.0,148.31,148.28,15.34]
[1719535759119,20.0,148.33,148.28,15.34]
[1719535759333,20.0,148.33,148.29,15.34]
[1719535759512,26.7418,148.33,148.29,15.34]
[1719535759825,20.0,148.33,148.29,15.34]
[1719535760201,20.0,148.33,148.27,1.34862026]
[1719535760524,20.0,148.34,148.26,61.36]
[1719535760823,20.0,148.34,148.27,30.0]
[1719535764517,20.0,148.34,148.26,68.108]
[1719535765707,20.0,148.34,148.27,6.748]
[1719535766399,20.0,148.34,148.28,1.348542]
[1719535766601,6.1182,148.36,148.32,15.34]
[1719535766602,20.0,148.35,148.32,15.34]
[1719535766824,6.7398,148.38,148.32,15.34]
[1719535767312,20.0,148.37,148.32,15.34]
[1719535768312,20.0,148.38,148.32,15.34]
[1719535768700,20.0,148.38,148.33,15.34]
[1719535769123,26.7394,148.38,148.33,15.34]
[1719535770635,20.0,148.38,148.34,15.34]
[1719535770831,1.3508,148.39,148.35,15.34]
[1719535770832,21.3508,148.39,148.35,15.34]
[1719535771006,21.3508,148.39,148.34,15.34]
[1719535771200,20.0,148.39,148.34,15.34]
[1719535771403,20.0,148.39,148.35,15.34]
[1719535772621,1.3508,148.42,148.35,15.34]
[1719535772822,1.3508,148.42,148.38,15.34]
[1719535773536,20.0,148.43,148.39,15.34]
[1719535774735,20.0,148.43,148.38,15.34]
[1719535774942,20.0,148.44,148.38,15.34]
[1719535775243,20.0,148.44,148.39,15.34]
[1719535776340,6.7412,148.34,148.17,7.03430085]
[1719535776546,6.7412,148.34,148.06,14.90470967]
[1719535776547,123.6374,148.07,148.06,2.69e-05]
[1719535776749,123.6374,148.07,147.78,33.87480823]
[1719535776750,54.03758689,148.04,147.78,33.87480823]
[1719535776913,6.764,147.84,147.83,24.591872]
[1719535777114,6.73071588,147.89,147.64,18.26928412]
[1719535777305,9.31523714,147.75,147.65,100.0]
[1719535777509,9.31523714,147.75,147.64,18.26928412]
[1719535777510,9.39598189,147.74,147.64,18.26928412]
[1719535777731,10.96233964,147.73,147.64,18.26928412]
[1719535777917,12.52797586,147.72,147.64,18.26928412]
[1719535778116,20.36198801,147.72,147.64,17.76928412]
[1719535778437,20.36198801,147.72,147.69,15.34]
[1719535778650,20.36198801,147.72,147.62,0.8341465]
[1719535778651,12.52797586,147.72,147.64,0.170785]
[1719535779345,9.31523714,147.75,147.64,0.170785]
[1719535780135,9.31523714,147.75,147.65,42.45]
[1719535781723,9.31523714,147.75,147.7,42.45]
[1719535781919,9.31523714,147.75,147.74,42.45]
[1719535782342,9.31523714,147.75,147.74,62.45]
[1719535783234,7.23071588,147.9,147.74,62.45]
[1719535783443,7.23071588,147.9,147.75,20.0]
[1719535784150,9.91934982,147.97,147.76,100.43677071]
[1719535784320,9.91934982,147.98,147.93,5.4793824]
[1719535784520,9.91934982,147.98,147.94,21.97131424]
[1719535784720,9.91934982,147.98,147.95,9.41756236]
[1719535784932,9.91934982,147.99,147.96,9.41756236]
[1719535785136,9.91934982,147.99,147.98,13.72941233]
[1719535785452,6.7579,147.98,147.9,10.19325151]
[1719535785633,26.7581,147.97,147.9,3.43235151]
[1719535785952,20.0,147.97,147.9,10.19355151]
[1719535786147,20.0,147.99,147.93,3.43235151]
[1719535786450,6.7578,147.98,147.92,3.43235151]
[1719535786655,6.7578,147.98,147.94,3.43235151]
[1719535787118,16.8881,148.04,147.88,13.72941233]
[1719535787119,9.92641437,148.05,147.96,6.7585]
[1719535787322,9.92641437,148.07,147.97,43.93705873]
[1719535787558,126.80941437,148.08,147.98,21.96711846]
[1719535787756,26.80941437,148.08,147.99,75.32299264]
[1719535788058,20.0,148.07,148.0,43.93705873]
[1719535788230,6.754,148.06,148.05,3.42152367]
[1719535788422,6.7553,148.04,148.03,6.84304734]
[1719535788623,26.7553,148.04,148.03,6.84304734]
[1719535788946,26.7553,148.04,148.0,13.68609468]
[1719535789325,26.7553,148.04,147.98,3.41949289]
[1719535789754,6.7544,148.05,147.98,10.17699289]
[1719535789921,100.0,148.07,147.99,3.41949289]
[1719535790122,6.7565,148.01,147.94,6.7594]
[1719535790361,116.8863,148.05,147.94,6.7594]
[1719535790959,6.7563,148.01,147.94,6.7594]
[1719535791155,6.7563,148.01,147.91,3.60996343]
[1719535791156,6.7558,148.02,147.91,3.60996343]
[1719535791448,6.7558,148.02,147.96,6.7584]
[1719535792026,6.7578,147.98,147.92,6.7602]
[1719535792229,100.0,148.03,147.92,6.7602]
[1719535792447,20.0,148.02,147.86,3.60996343]
[1719535792632,20.0,148.02,147.9,3.60996343]
[1719535792836,20.0,148.02,147.92,16.8999]
[1719535793748,6.7572,147.99,147.92,23.6602]
[1719535794057,6.7567,148.0,147.92,16.8999]
[1719535794562,100.0,147.99,147.83,3.60996343]
[1719535794858,97.61813657,148.03,147.77,3.60996343]
[1719535794859,100.0,147.92,147.77,3.60996343]
[1719535795043,121.39003657,147.94,147.77,3.60996343]
[1719535795242,6.7618,147.89,147.74,3.60996343]
[1719535795431,159.3493,147.94,147.84,6.764]
[1719535795632,159.3493,147.94,147.83,16.9113]
[1719535795633,6.7622,147.88,147.83,16.9113]
[1719535795831,6.7618,147.89,147.83,23.6754]
[1719535796040,116.8993,147.94,147.84,6.7639]
[1719535796258,20.0,147.93,147.84,6.7639]
[1719535796461,20.0,147.93,147.83,16.9113]
[1719535796664,6.7604,147.92,147.87,6.7626]
[1719535797036,6.7604,147.92,147.86,6.7631]
[1719535798461,6.7604,147.92,147.85,16.908]
[1719535798462,6.7599,147.94,147.87,6.7626]
[1719535798767,6.76,147.93,147.86,6.7627]
[1719535799142,6.76,147.93,147.87,6.7626]
[1719535800440,159.3453,147.98,147.88,6.7621]
[1719535800441,6.7595,147.94,147.88,6.7621]
[1719535800637,59.3453,147.98,147.89,6.7617]
[1719535800863,6.7594,147.95,147.89,6.7617]
[1719535801372,6.7594,147.95,147.9,6.7613]
[1719535801742,6.7594,147.95,147.89,6.7617]
[1719535801968,6.7594,147.95,147.9,6.7612]
[1719535802170,6.7586,147.96,147.86,3.60996343]
[1719535802338,21.39003657,148.0,147.91,6.7608]
[1719535802339,6.7581,147.98,147.91,6.7608]
[1719535802535,16.891,148.01,147.91,6.7608]
[1719535802536,6.7582,147.97,147.91,6.7608]
[1719535802965,21.39003657,148.04,147.78,67.45]
[1719535802966,100.0,148.04,147.9,3.60996343]
[1719535803135,6.7569,148.0,147.94,6.7594]
[1719535803338,120.0,148.03,147.9,16.9022]
[1719535803339,100.0,148.02,147.9,16.9022]
[1719535803570,6.7582,147.97,147.9,16.9022]
[1719535803772,16.8917,148.01,147.9,16.9022]
[1719535804165,6.7585,147.97,147.91,6.7605]
[1719535804365,6.7585,147.97,147.8,27.091882]
[1719535804366,100.0,147.95,147.82,6.7648]
[1719535804566,6.7632,147.86,147.81,16.9133]
[1719535804743,6.7627,147.87,147.81,6.7651]
[1719535805063,6.7623,147.88,147.82,6.7649]
[1719535805245,16.9031,147.91,147.8,16.9136]
[1719535805440,6.7621,147.89,147.83,6.7642]
[1719535806157,6.7612,147.91,147.82,16.9116]
[1719535806347,36.8989,147.94,147.82,16.9116]
[1719535807768,6.7614,147.9,147.85,6.7635]
[1719535808974,6.7608,147.91,147.85,6.7635]
[1719535809141,27.103359,148.0,147.84,16.9094]
[1719535809142,16.8952,147.98,147.84,3.60996343]
[1719535809342,6.7603,147.93,147.84,3.60996343]
[1719535809743,6.7603,147.93,147.86,3.60996343]
[1719535810865,20.0,147.97,147.86,3.60996343]
[1719535810866,6.7595,147.94,147.89,6.7617]
[1719535811089,6.7595,147.94,147.84,3.60996343]
[1719535811261,6.7595,147.94,147.85,6.748]
[1719535811577,6.7595,147.94,147.88,13.5098]
[1719535813466,6.7595,147.94,147.88,6.7618]
[1719535814082,6.7602,147.93,147.87,13.5106]
[1719535815177,6.7602,147.93,147.88,6.7621]
[1719535815379,20.0,147.97,147.89,6.7617]
[1719535816070,20.0,147.97,147.88,23.6671]
[1719535816265,20.0,147.97,147.88,30.4151]
[1719535817661,20.0,147.97,147.88,23.6671]
[1719535817875,6.76,147.93,147.88,23.6671]
[1719535818273,20.0,147.97,147.89,6.7617]
[1719535818274,6.7596,147.94,147.89,6.7617]
[1719535818585,6.7596,147.94,147.88,23.6671]
[1719535819288,6.76,147.93,147.88,23.6671]
[1719535821565,6.761,147.91,147.85,6.7633]
[1719535821775,6.7615,147.9,147.84,16.9095]
[1719535821975,6.7615,147.9,147.85,6.7635]
[1719535822183,6.7614,147.9,147.84,23.6732]
[1719535822400,6.7614,147.9,147.84,16.9095]
[1719535822570,6.7614,147.9,147.85,6.7632]
[1719535822969,6.7609,147.91,147.86,6.7631]
[1719535825293,6.7609,147.91,147.85,6.7635]
[1719535826194,6.7609,147.91,147.86,6.763]
[1719535826692,16.8991,147.94,147.87,6.7626]
[1719535826693,6.7605,147.92,147.87,6.7626]
[1719535826883,41.39003657,147.98,147.85,3.60996343]
[1719535826884,16.8955,147.97,147.86,16.907]
[1719535827072,26.51075838,147.96,147.86,16.907]
[1719535827273,6.7602,147.93,147.88,6.7621]
[1719535828283,6.7604,147.92,147.87,10.37256343]
[1719535828474,6.76,147.93,147.87,10.37256343]
[1719535828675,6.76,147.93,147.88,6.7621]
[1719535829077,100.0,147.91,147.76,3.39677654]
[1719535829272,20.0,147.92,147.74,3.60996343]
[1719535829273,6.7628,147.87,147.74,3.60996343]
[1719535829489,36.9012,147.92,147.8,16.914]
[1719535829692,6.50367443,147.91,147.8,16.914]
[1719535829996,20.0,147.9,147.8,16.914]
[1719535830197,20.0,147.9,147.81,3.60996343]
[1719535830404,20.0,147.91,147.81,3.60996343]
[1719535830692,6.7628,147.87,147.82,6.7646]
[1719535831300,20.0,147.91,147.8,27.28956343]
[1719535831301,6.7633,147.86,147.8,27.28956343]
[1719535831475,6.7633,147.86,147.81,6.7653]
[1719535832295,6.7628,147.87,147.81,6.7653]
[1719535833390,6.7631,147.86,147.81,6.7653]
[1719535833622,6.7623,147.88,147.82,6.7646]
[1719535833797,6.7628,147.87,147.82,6.7646]
[1719535833987,20.0,147.91,147.83,6.7645]
[1719535834295,6.7612,147.91,147.85,6.7632]
[1719535834496,6.7617,147.89,147.84,6.764]
[1719535834893,6.7614,147.9,147.84,6.764]
[1719535835199,6.7614,147.9,147.85,6.7634]
[1719535836085,6.761,147.91,147.86,6.7631]
[1719535836292,6.7605,147.92,147.87,6.7624]
[1719535837081,6.7608,147.91,147.86,10.37296343]
[1719535837281,16.8977,147.95,147.83,16.9108]
[1719535837577,6.7614,147.9,147.83,16.9108]
[1719535837800,6.761,147.91,147.85,6.7632]
[1719535838587,6.761,147.91,147.86,10.37306343]
[1719535838796,16.8944,147.98,147.86,3.60996343]
[1719535839007,20.0,147.97,147.86,3.60996343]
[1719535839189,27.103359,148.0,147.82,6.122]
[1719535839389,100.0,148.09,147.82,6.122]
[1719535839390,0.2096513,148.03,147.91,34.65]
[1719535839694,0.2096513,148.03,147.93,16.8993]
[1719535839898,0.2096513,148.03,147.96,16.8954]
[1719535840406,0.2096513,148.03,147.99,6.7572]
[1719535840703,0.2096513,148.03,148.0,6.7566]
[1719535841202,0.2096513,148.03,148.01,6.7562]
[1719535841791,0.2096513,148.03,147.94,6.6072]
[1719535842007,0.2096513,148.03,147.94,6.7594]
[1719535842393,6.7563,148.01,147.95,6.7589]
[1719535842595,6.9654513,148.03,147.95,6.7589]
[1719535843005,6.7558,148.02,147.95,6.7589]
[1719535844585,6.9650513,148.03,147.96,6.7585]
[1719535844782,0.2096513,148.03,147.97,6.7581]
[1719535845209,6.7558,148.02,147.95,6.7587]
[1719535846512,0.2096513,148.03,147.88,6.5376]
[1719535846513,100.2096513,148.03,147.89,20.51326343]
[1719535846809,100.2096513,148.03,147.9,6.7611]
[1719535846810,6.7582,147.97,147.9,6.7611]
[1719535847008,100.0,148.01,147.9,6.7611]
[1719535847207,100.0,147.99,147.85,16.9083]
[1719535848532,6.7606,147.92,147.86,6.7629]
[1719535848704,10.46117265,147.92,147.86,6.7629]
[1719535849511,3.70057265,147.92,147.82,10.14336343]
[1719535849811,3.70057265,147.92,147.81,16.9128]
[1719535849812,6.7622,147.88,147.81,16.9128]
[1719535850226,6.7617,147.9,147.81,16.9128]
[1719535850424,6.7617,147.9,147.84,6.764]
[1719535851214,6.7627,147.87,147.81,16.9128]
[1719535851531,6.7611,147.91,147.81,16.9128]
[1719535852023,3.70057265,147.92,147.82,6.7646]
[1719535852024,6.7614,147.9,147.82,6.7646]
[1719535852723,6.7614,147.9,147.83,6.7644]
[1719535853522,3.70057265,147.92,147.84,20.51966343]
[1719535853715,3.70057265,147.92,147.86,6.7627]
[1719535853918,6.7609,147.91,147.84,23.6737]
[1719535854102,3.70057265,147.92,147.84,16.9097]
[1719535854428,10.46127265,147.92,147.85,6.7635]
[1719535855321,6.7617,147.89,147.84,3.60996343]
[1719535855538,3.70057265,147.92,147.82,3.60996343]
[1719535855701,3.70057265,147.92,147.84,6.764]
[1719535856126,6.761,147.91,147.85,6.7636]
[1719535856631,3.70057265,147.92,147.85,6.7636]
[1719535857007,10.46137265,147.92,147.85,6.7636]
[1719535858302,3.70057265,147.92,147.86,10.37306343]
[1719535859225,3.70057265,147.92,147.87,6.7625]
[1719535859411,3.70057265,147.92,147.86,27.28046343]
[1719535859907,10.46107265,147.92,147.86,27.28046343]
[1719535860312,3.70057265,147.92,147.86,27.28046343]
[1719535860820,3.70057265,147.92,147.87,6.7623]
[1719535861034,3.70057265,147.92,147.86,20.51746343]
[1719535861222,3.70057265,147.92,147.87,6.7626]
[1719535862061,3.70057265,147.92,147.88,20.51466343]
[1719535862239,3.70057265,147.92,147.88,16.9047]
[1719535862405,3.70057265,147.92,147.88,20.51466343]
[1719535863717,3.70057265,147.92,147.89,6.7617]
[1719535864542,3.70057265,147.92,147.84,20.51946343]
[1719535864744,6.7609,147.91,147.84,27.28316343]
[1719535864911,6.7614,147.9,147.84,27.28316343]
[1719535865333,3.70057265,147.92,147.85,6.7634]
[1719535865645,10.46097265,147.92,147.85,6.7634]
[1719535865945,3.70057265,147.92,147.86,6.763]
[1719535866310,3.70057265,147.92,147.86,10.37296343]
[1719535866527,3.70057265,147.92,147.87,6.7625]
[1719535866729,3.70057265,147.92,147.88,6.7621]
[1719535866939,3.70057265,147.92,147.86,20.51716343]
[1719535867143,10.46097265,147.92,147.86,27.27996343]
[1719535867436,3.70057265,147.92,147.86,27.27996343]
[1719535867809,3.70057265,147.92,147.87,6.7626]
[1719535871039,3.70057265,147.92,147.86,27.28016343]
[1719535871240,3.70057265,147.92,147.83,15.63550831]
[1719535871410,6.7619,147.89,147.83,22.39990831]